lending/lending_fUSD_20240810
["ID","MTS","AMOUNT","RATE_DAILY","PERIOD"]
[334571992,1723248037290,372.49,8.219e-05,2]
[334571993,1723248101530,200.0,7.197e-05,2]
[334571995,1723248150712,150.0,0.00024701,120]
[334571996,1723248210782,150.0,0.00025795,120]
[334571999,1723248331662,150.0,0.00026601,120]
[334572000,1723248450768,150.0,0.00025969,120]
[334572001,1723248511278,150.0,0.0002514,120]
[334572002,1723248521683,371.53,8.219e-05,2]
[334572007,1723248631927,-155.0,9.962e-05,2]
[334572008,1723248631937,-1256.92584908,9.962e-05,2]
[334572009,1723248631947,-550.0,0.0001,2]
[334572010,1723248631956,-173.15774171,0.00010012,2]
[334572011,1723248631966,-200.0,0.00010073,2]
[334572012,1723248631975,-250.0,0.00010112,2]
[334572013,1723248631985,-1000.0,0.00010158,2]
[334572014,1723248631995,-184.0,0.00010187,2]
[334572015,1723248632005,-272.0,0.0001038,2]
[334572016,1723248632014,-264.43209294,0.00010447,2]
[334572017,1723248632024,-371.53,0.00010482,2]
[334572018,1723248632033,-282.08032,0.0001089,2]
[334572019,1723248632042,-2560.39,0.0001089,2]
[334572020,1723248632052,-300.0,0.00010899,2]
[334572021,1723248632062,-553.9471,0.000109,2]
[334572022,1723248632071,-1143.5919,0.000109,2]
[334572023,1723248632081,-167.26645374,0.000109,2]
[334572024,1723248632090,-434.3118,0.000109,2]
[334572025,1723248632105,-799.1198,0.000109,2]
[334572026,1723248632117,-220.0964517,0.000109,2]
[334572027,1723248632126,-204.3760443,0.000109,2]
[334572028,1723248632135,-250.0,0.00010959,2]
[334572029,1723248632145,-540.5,0.00010959,2]
[334572030,1723248632154,-3909.0829926,0.00010995,2]
[334572031,1723248632164,-1889.4753182,0.00010995,2]
[334572032,1723248632173,-150.0,0.00010999,2]
[334572033,1723248632183,-7677.81722977,0.00011,2]
[334572034,1723248632193,-17813.73885833,0.00011,2]
[334572035,1723248632207,-451.63886766,0.00011,2]
[334572036,1723248632218,-4082.1901667,0.00011,2]
[334572037,1723248632230,-1528.35103245,0.00011,2]
[334572038,1723248632241,-615.77052,0.00011,2]
[334572039,1723248632253,-496.77,0.00011,2]
[334572040,1723248632276,-5089.15586786,0.00011,2]
[334572041,1723248632287,-307.5,0.00011,2]
[334572042,1723248632299,-2813.50210701,0.00011,2]
[334572043,1723248632310,-4087.53372105,0.00011,2]
[334572044,1723248632321,-492.87796636,0.00011,2]
[334572045,1723248632352,-777.495996,0.00011,2]
[334572046,1723248632372,-521.44331218,0.00011,2]
[334572047,1723248632383,-287.37338502,0.00011,2]
[334572048,1723248632394,-1579.80960355,0.00011,2]
[334572049,1723248632406,-8770.3115774,0.00011,2]
[334572050,1723248632417,-2470.24297497,0.00011,2]
[334572051,1723248632437,-413.47322908,0.00011,2]
[334572052,1723248637941,-2526.479115,0.00010429,2]
[334572053,1723248637951,-16611.41988119,0.00011,2]
[334572054,1723248637962,-762.89533013,0.00011,2]
[334572055,1723248637974,-1167.56978197,0.00011,2]
[334572056,1723248637991,-5213.2416444,0.00011,2]
[334572057,1723248638003,-10057.58,0.00011,2]
[334572058,1723248638014,-767.04174453,0.00011,2]
[334572059,1723248638025,-442.25,0.00011,2]
[334572060,1723248638047,-1248.82727493,0.00011,2]
[334572061,1723248638210,-515.28705452,0.00011,2]
[334572062,1723248638221,-1134.70787623,0.00011,2]
[334572063,1723248638233,-6266.03065695,0.00011,2]
[334572064,1723248638249,-1041.06219095,0.00011,2]
[334572065,1723248638261,-6434.08014304,0.00011,2]
[334572066,1723248638275,-4852.6012,0.00011,2]
[334572067,1723248638287,-10535.96684458,0.00011,2]
[334572068,1723248638298,-35849.47465954,0.00011,2]
[334572069,1723248638310,-307.07755376,0.00011,2]
[334572071,1723248638321,-3861.57904239,0.00011,2]
[334572435,1723248642032,-17049.04648691,0.00011,2]
[334572446,1723248642084,-680.67,0.00011,2]
[334572453,1723248642138,-3891.36684221,0.00011,2]
[334572456,1723248642151,-503.4787228,0.00011,2]
[334572458,1723248642163,-24104.6103854,0.00011,2]
[334572462,1723248642195,-540.18000005,0.00011,2]
[334572469,1723248642248,-347.78074878,0.00011,2]
[334572481,1723248642356,-322.85018007,0.00011,2]
[334572483,1723248642372,-3593.08737091,0.00011,2]
[334572486,1723248642384,-307.46014093,0.00011,2]
[334572488,1723248642410,-1079.800005,0.00011,2]
[334572498,1723248642787,-630.18302999,0.00011,2]
[334572499,1723248642800,-2648.61807622,0.00011,2]
[334572511,1723248642946,-276.224985,0.00011,2]
[334572512,1723248642957,-33539.00000004,0.00011,2]
[334572514,1723248642968,-2694.80145435,0.00011,2]
[334572518,1723248642999,-297.59077079,0.00011,2]
[334572519,1723248643011,-55926.09250873,0.00011,2]
[334572589,1723248644338,-711.51228327,0.00011,2]
[334572590,1723248644350,-883.32723249,0.00011,2]
[334572591,1723248644372,-452.15233686,0.00011,2]
[334572592,1723248644384,-4133.13349934,0.00011,2]
[334572595,1723248645991,-167.2758628,0.0001,2]
[334572596,1723248646001,-1507.9241372,0.00011,2]
[334572597,1723248646012,-321.56691331,0.00011,2]
[334572598,1723248646024,-1273.79636577,0.00011,2]
[334572599,1723248646035,-1300.7,0.00011,2]
[334572600,1723248646208,-3006.8028,0.00011,2]
[334572601,1723248646220,-1678.62353,0.00011,2]
[334572606,1723248931672,150.0,0.00026029,120]
[334572607,1723248981347,280.0,8.243e-05,2]
[334572608,1723248981368,105.96,8.243e-05,2]
[334572609,1723249037046,567.20217339,8.243e-05,2]
[334572610,1723249110760,150.0,0.00025528,120]
[334572612,1723249170779,150.0,0.00025575,120]
[334572613,1723249230762,150.0,0.00026112,120]
[334572615,1723249350972,150.0,0.00026484,120]
[334572617,1723249530806,150.0,0.0002634,120]
[334572618,1723249652382,240.0,8.219e-05,2]
[334572619,1723249652410,126.66,8.219e-05,2]
[334572620,1723249655647,438.28,9.648e-05,2]
[334572621,1723249726519,11153.58,9.646e-05,2]
[334572622,1723249738869,-184.0,9.66e-05,2]
[334572624,1723249738896,-180.44,9.696e-05,2]
[334572626,1723249738923,-108.09524961,9.698e-05,2]
[334572629,1723249767554,603.0,9.648e-05,2]
[334572630,1723249771507,150.0,0.0002643,120]
[334572649,1723249832863,-334.17,9.801e-05,2]
[334572650,1723249832875,-326.83,9.801e-05,2]
[334572651,1723249832884,-1000.0,9.802e-05,2]
[334572652,1723249832894,-250.0,9.828e-05,2]
[334572653,1723249832903,-596.0,9.957e-05,2]
[334572654,1723249832912,-156.31,0.00010037,2]
[334572655,1723249832922,-156.31,0.00010045,2]
[334572656,1723249832932,-156.31,0.00010053,2]
[334572657,1723249832941,-197.79549383,0.00010061,2]
[334572658,1723249832953,-102.20450617,0.00010061,2]
[334572659,1723249832963,-156.31,0.00010062,2]
[334572660,1723249832973,-878.59,0.00010062,2]
[334572661,1723249832982,-4686.21,0.00010062,2]
[334572662,1723249832992,-156.31,0.0001007,2]
[334572663,1723249833002,-1008.03,0.0001007,2]
[334572664,1723249833011,-156.31,0.00010078,2]
[334572665,1723249833021,-156.31,0.00010087,2]
[334572667,1723249833030,-170.99,0.00010103,2]
[334572668,1723249833039,-366.66,0.00010457,2]
[334572669,1723249833049,-252.8,0.00010498,2]
[334572670,1723249833058,-3197.21,0.00010507,2]
[334572671,1723249833067,-1865.0,0.000107,2]
[334572672,1723249833077,-1000.0,0.000107,2]
[334572673,1723249833086,-277.96103,0.0001089,2]
[334572674,1723249833096,-1008.2325,0.000109,2]
[334572675,1723249833106,-582.24876223,0.000109,2]
[334572676,1723249833116,-7500.0,0.000109,2]
[334572677,1723249833126,-214.12688394,0.000109,2]
[334572678,1723249833135,-250.0,0.00010959,2]
[334572679,1723249833144,-23090.6376117,0.00010998,2]
[334572680,1723249833153,-3289.9776221,0.00010998,2]
[334572681,1723249833163,-348293.58269987,0.00011,2]
[334572682,1723249833173,-39633.19188007,0.00011,2]
[334572683,1723249833184,-1215.07590594,0.00011,2]
[334572684,1723249833196,-557.07764247,0.00011,2]
[334572685,1723249833212,-1679.06194262,0.00011,2]
[334572686,1723249833223,-1203.63841064,0.00011,2]
[334572687,1723249833234,-2514.72665498,0.00011,2]
[334572688,1723249833245,-22416.49869489,0.00011,2]
[334572689,1723249833257,-9319.55914838,0.00011,2]
[334572690,1723249833272,-929.99995,0.00011,2]
[334572691,1723249833285,-300.0,0.00011,2]
[334572692,1723249833297,-1941.12504729,0.00011,2]
[334572693,1723249833310,-1539.0250221,0.00011,2]
[334572694,1723249833326,-1306.0,0.00011,2]
[334572695,1723249833338,-3332.62267,0.00011,2]
[334572698,1723249838143,-985.2846739,9.962e-05,2]
[334572699,1723249838152,-294682.5534645,0.00011,2]
[334572700,1723249838163,-3195.82711099,0.00011,2]
[334572701,1723249838174,-1495.67112458,0.00011,2]
[334572702,1723249838184,-1605.98,0.00011,2]
[334572703,1723249838201,-6144.33134853,0.00011,2]
[334572704,1723249838212,-712.43225591,0.00011,2]
[334572705,1723249838322,-2352.243256,0.00011,2]
[334572706,1723249838333,-2756.36521699,0.00011,2]
[334572707,1723249838384,-5436.27545617,0.00011,2]
[334572721,1723249840097,-9364.78510067,0.00011,2]
[334572722,1723249840216,-1608.91586877,0.00011,2]
[334572723,1723249840227,-462.7030002,0.00011,2]
[334572724,1723249840391,-1364.85287444,0.00011,2]
[334572725,1723249841449,-1291.7637918,0.00011,2]
[334572726,1723249841461,-4044.76876115,0.00011,2]
[334572727,1723249841475,-305.7490337,0.00011,2]
[334572728,1723249841497,-525.1411278,0.00011,2]
[334572732,1723249843057,-267.61699432,0.00011,2]
[334572755,1723249843330,-1365148.44170421,0.00011,2]
[334572762,1723249844228,-1217.50675063,0.00011,2]
[334572763,1723249844242,-1433.76304378,0.00011,2]
[334572764,1723249844253,-609.59,0.00011,2]
[334572766,1723249846147,-3079.92373338,0.00011,2]
[334572768,1723249846159,-1321.35556289,0.00011,2]
[334572771,1723249846171,-2034.65923106,0.00011,2]
[334572773,1723249846183,-695.19249147,0.00011,2]
[334572775,1723249846194,-290.72528,0.00011,2]
[334572776,1723249846205,-430.79410387,0.00011,2]
[334572777,1723249846227,-3570.96998091,0.00011,2]
[334572778,1723249846283,-500.0,0.00011,2]
[334572779,1723249846330,-12124.40070352,0.00011,2]
[334572791,1723250113419,607.0,0.000178,120]
[334572792,1723250113883,607.0,0.0001779,120]
[334572793,1723250114341,607.0,0.0001778,120]
[334572794,1723250114799,607.0,0.0002439,120]
[334572795,1723250115249,607.0,0.0002438,120]
[334572796,1723250115732,607.0,0.0002437,120]
[334572797,1723250116209,607.0,0.0002459,120]
[334572798,1723250116653,607.0,0.0002458,120]
[334572799,1723250117101,607.0,0.0002489,120]
[334572800,1723250117551,616.63,0.0002488,120]
[334572804,1723250167041,347.59,8.564e-05,2]
[334572811,1723250667826,347.08,8.376e-05,2]
[334572812,1723250790745,150.0,0.00025443,120]
[334572813,1723250811878,-550.0,0.0001,2]
[334572814,1723250811900,-500.0,0.00010153,2]
[334572815,1723250811923,-4257.95,0.00010161,2]
[334572816,1723250811951,-800.0,0.00010347,2]
[334572817,1723250811974,-218.4,0.00010358,2]
[334572818,1723250811996,-303.87313893,0.0001038,2]
[334572819,1723250812018,-250.0,0.00010397,2]
[334572820,1723250812045,-79.77686107,0.00010438,2]
[334572821,1723250850785,150.0,0.00025757,120]
[334572822,1723250910729,150.0,0.00026881,120]
[334572841,1723251038271,-245.92,0.00010335,2]
[334572842,1723251038281,-181.28419193,0.00010339,2]
[334572843,1723251038330,-678.46643896,0.00010339,2]
[334572844,1723251038390,-298.93586434,0.00010339,2]
[334572845,1723251038402,-62.65580477,0.00010339,2]
[334572846,1723251038414,-554.87862334,0.00010426,2]
[334572847,1723251038426,-6907.17137666,0.00010426,2]
[334572848,1723251038435,-360.0,0.0001062,2]
[334572849,1723251038444,-150.0,0.0001063,2]
[334572850,1723251038454,-347.08,0.0001064,2]
[334572851,1723251038463,-628.89088,0.0001089,2]
[334572852,1723251038472,-524.02388598,0.000109,2]
[334572853,1723251038483,-1967.08950907,0.000109,2]
[334572854,1723251038495,-3241.6375,0.000109,2]
[334572855,1723251038515,-2291.27299093,0.000109,2]
[334572856,1723251038525,-1588.10084337,0.00010998,2]
[334572857,1723251038571,-999.05767994,0.00010998,2]
[334572858,1723251038583,-660.96571054,0.00010998,2]
[334573118,1723251041008,-332.7318385,0.00010998,2]
[334573120,1723251041019,-622.22565479,0.00010998,2]
[334573122,1723251041030,-1594.4435325,0.00010998,2]
[334573151,1723251041424,-1531.85830089,0.00010998,2]
[334573153,1723251041436,-1180.22303273,0.00010998,2]
[334573155,1723251041447,-935.2712301,0.00010998,2]
[334573157,1723251041458,-517.45997464,0.00010998,2]
[334573159,1723251041467,-1419.4440608,0.00010998,2]
[334573161,1723251041476,-7705.9871528,0.00010998,2]
[334573163,1723251041486,-440.59,0.00010999,2]
[334573165,1723251041495,-150.0,0.00010999,2]
[334573167,1723251041504,-30364.5747466,0.00011,2]
[334573169,1723251041515,-2906.66165192,0.00011,2]
[334573358,1723251043280,-809.96178943,0.00011,2]
[334573365,1723251043338,-460.35272284,0.00011,2]
[334573372,1723251043396,-64893.79815245,0.00011,2]
[334573539,1723251045046,-1919.52883686,0.00011,2]
[334573541,1723251045058,-940.096497,0.00011,2]
[334573543,1723251045069,-303.845,0.00011,2]
[334573652,1723251046281,-16274.0,0.00011,2]
[334573661,1723251046362,-58.69708169,0.00011,2]
[334573665,1723251046401,-5886.8478948,0.00011,2]
[334574085,1723251090778,150.0,0.00025052,120]
[334574086,1723251167234,344.43,8.711e-05,2]
[334574087,1723251511232,150.0,0.00025246,120]
[334574088,1723251669671,327.2,8.405e-05,2]
[334574089,1723251690768,150.0,0.00026304,120]
[334574090,1723251810779,150.0,0.00025904,120]
[334574092,1723251926308,2005.0,0.00027,120]
[334574093,1723251932125,150.0,0.00025487,120]
[334574094,1723251990737,150.0,0.00025997,120]
[334574095,1723252131050,326.15,8.278e-05,2]
[334574102,1723252231274,150.0,0.00025327,120]
[334574103,1723252232324,-550.0,0.0001,2]
[334574104,1723252232333,-155.0,0.00010034,2]
[334574105,1723252232343,-288.0,0.00010061,2]
[334574106,1723252232352,-300.0,0.00010069,2]
[334574107,1723252232361,-23880.0,0.0001007,2]
[334574108,1723252232371,-250.0,0.00010114,2]
[334574109,1723252232532,-218.42,0.00010156,2]
[334574110,1723252232543,-712.0,0.00010263,2]
[334574111,1723252232553,-640.33202254,0.00010263,2]
[334574112,1723252232563,-159.58,0.00010426,2]
[334574113,1723252232572,-326.15,0.00010542,2]
[334574114,1723252232581,-840.55,0.00010542,2]
[334574115,1723252232590,-1718.77,0.00010542,2]
[334574116,1723252232600,-1097.60449239,0.0001078,2]
[334574117,1723252232609,-1104.51958541,0.0001078,2]
[334574118,1723252232618,-948.209,0.000108,2]
[334574119,1723252232628,-150.0,0.00010899,2]
[334574120,1723252232638,-111958.3602,0.000109,2]
[334574121,1723252232647,-768.5522,0.000109,2]
[334574122,1723252232657,-80464.5236,0.000109,2]
[334574123,1723252232669,-417.222,0.000109,2]
[334574124,1723252232679,-2166.1050193,0.000109,2]
[334574125,1723252232691,-1192.8949193,0.000109,2]
[334574126,1723252232703,-4680.5515614,0.000109,2]
[334574127,1723252232714,-499.99,0.000109,2]
[334574128,1723252232723,-1867.81799642,0.000109,2]
[334574129,1723252232741,-5632.18200358,0.000109,2]
[334574130,1723252232751,-1093.0,0.000109,2]
[334574131,1723252232763,-261.83,0.00010959,2]
[334574132,1723252232773,-250.0,0.00010959,2]
[334574133,1723252232783,-165.07218958,0.00010997,2]
[334574135,1723252232792,-403.24580684,0.00010998,2]
[334574136,1723252232803,-2845.92407146,0.00010998,2]
[334574137,1723252232813,-691.72107011,0.00010998,2]
[334574138,1723252232824,-236.32340439,0.00010998,2]
[334574139,1723252232834,-4974.43951217,0.00010998,2]
[334574140,1723252232846,-295.44814184,0.00010998,2]
[334574142,1723252232857,-1243.57265159,0.00010998,2]
[334574145,1723252232867,-1724.29734841,0.00011,2]
[334574147,1723252232878,-8499.0,0.00011,2]
[334574150,1723252232903,-349.70936002,0.00011,2]
[334574172,1723252238495,-1664.7,0.00011,2]
[334574173,1723252238507,-277.955,0.00011,2]
[334574174,1723252238521,-103632.263707,0.00011,2]
[334574175,1723252238537,-542.99403541,0.00011,2]
[334574176,1723252238549,-326.45,0.00011,2]
[334574177,1723252238561,-10573.14387271,0.00011,2]
[334574178,1723252238612,-300.001004,0.00011,2]
[334574179,1723252238624,-500.0,0.00011,2]
[334574180,1723252238636,-4359.03,0.00011,2]
[334574318,1723252240426,-31932.58878828,0.00011,2]
[334574320,1723252240437,-79809.9155699,0.00011,2]
[334574383,1723252241034,-577.37337048,0.00011,2]
[334574431,1723252241491,-521.91257732,0.00011,2]
[334574433,1723252241503,-3640.76604198,0.00011,2]
[334574435,1723252241516,-6102.1638032,0.00011,2]
[334574437,1723252241528,-1634.38840113,0.00011,2]
[334574440,1723252241539,-7701.58319048,0.00011,2]
[334574442,1723252241551,-1124.02077438,0.00011,2]
[334574444,1723252241562,-644.08472678,0.00011,2]
[334574445,1723252241574,-1729.84999999,0.00011,2]
[334574446,1723252241587,-2926.4020911,0.00011,2]
[334574447,1723252241600,-376.955934,0.00011,2]
[334574451,1723252243383,-1255.06367634,0.00011,2]
[334574453,1723252243394,-2978.44655774,0.00011,2]
[334574459,1723252243473,-715.36994382,0.00011,2]
[334574461,1723252243484,-652.04973937,0.00011,2]
[334574463,1723252243496,-348397.25033233,0.00011,2]
[334574465,1723252243507,-3597.62480027,0.00011,2]
[334574468,1723252243520,-931.13278959,0.00011,2]
[334574472,1723252243566,-584.30000011,0.00011,2]
[334574480,1723252244753,-1599.08934919,0.00011,2]
[334574481,1723252244768,-873.04153788,0.00011,2]
[334574482,1723252244779,-443.07349567,0.00011,2]
[334574483,1723252244796,-831.48450349,0.00011,2]
[334574484,1723252244808,-427.18428536,0.00011,2]
[334574485,1723252244819,-537.88,0.00011,2]
[334574486,1723252244831,-768.44720034,0.00011,2]
[334574487,1723252244843,-394.44315714,0.00011,2]
[334574488,1723252244855,-286.93626806,0.00011,2]
[334574489,1723252244870,-6020.50980002,0.00011,2]
[334574490,1723252244881,-748.63230573,0.00011,2]
[334574491,1723252244892,-1570.55517767,0.00011,2]
[334574493,1723252246541,-7500.0,0.000109,2]
[334574494,1723252246551,-4253.76194839,0.00011,2]
[334574495,1723252246563,-5143.26,0.00011,2]
[334574496,1723252246574,-473.79377242,0.00011,2]
[334574497,1723252246586,-7533.79919372,0.00011,2]
[334574498,1723252246597,-3666.82998998,0.00011,2]
[334574499,1723252246608,-1862.13435004,0.00011,2]
[334574500,1723252246625,-609.53823585,0.00011,2]
[334574501,1723252246636,-4353.44640917,0.00011,2]
[334574502,1723252246647,-1740.74654837,0.00011,2]
[334574503,1723252246659,-457.79713877,0.00011,2]
[334574504,1723252246683,-31524.15144403,0.00011,2]
[334574505,1723252246694,-2353.21410219,0.00011,2]
[334574506,1723252246706,-1000.54103258,0.00011,2]
[334574507,1723252246718,-992.26795269,0.00011,2]
[334574508,1723252246729,-430.18684934,0.00011,2]
[334574509,1723252246741,-553.56974129,0.00011,2]
[334574510,1723252246754,-1553.99131896,0.00011,2]
[334574511,1723252246768,-2439.94300744,0.00011,2]
[334574512,1723252246779,-506.28464956,0.00011,2]
[334574513,1723252246790,-5385.10398628,0.00011,2]
[334574514,1723252246801,-8388.26784103,0.00011,2]
[334574515,1723252246812,-458.27649239,0.00011,2]
[334574516,1723252246831,-29854.74146677,0.00011,2]
[334574517,1723252246852,-1295.87497203,0.00011,2]
[334574521,1723252530775,150.0,0.00024648,120]
[334574525,1723252587543,293.53,8.472e-05,2]
[334574526,1723252591259,150.0,0.00025155,120]
[334574527,1723252710851,150.0,0.00024212,120]
[334574528,1723252770741,150.0,0.00026023,120]
[334574529,1723252978611,805636.54234251,0.00027,120]
[334574530,1723253085150,295.5,8.219e-05,2]
[334574531,1723253119416,2367.11561343,9e-05,2]
[334574532,1723253130939,150.0,0.00024649,120]
[334574533,1723253154358,4474.56538631,6.94e-05,2]
[334574534,1723253249339,155.0,8.412e-05,2]
[334574535,1723253250728,150.0,0.00025579,120]
[334574537,1723253421975,200.13114128,1.99e-06,2]
[334574539,1723253433123,-2272.31,9.99e-05,2]
[334574540,1723253433134,-250.0,9.998e-05,2]
[334574541,1723253433144,-246.17,0.00010043,2]
[334574542,1723253433154,-159.58,0.00010047,2]
[334574543,1723253433163,-230.4,0.00010095,2]
[334574544,1723253433172,-2276.20056685,0.00010095,2]
[334574545,1723253433182,-769.6,0.00010112,2]
[334574546,1723253433191,-272.33,0.00010422,2]
[334574547,1723253433201,-295.5,0.00010477,2]
[334574548,1723253433211,-300.0,0.00010698,2]
[334574549,1723253433223,-29678.91,0.00010699,2]
[334574550,1723253433233,-618.3264,0.000107,2]
[334574551,1723253433243,-441.6466,0.000107,2]
[334574552,1723253433253,-635.6682,0.000107,2]
[334574553,1723253433263,-2500.0,0.000107,2]
[334574554,1723253433272,-3621.77033977,0.0001079,2]
[334574555,1723253433282,-45846.5134,0.000108,2]
[334574556,1723253433291,-105677.12613709,0.000108,2]
[334574557,1723253433323,-2705.49053353,0.000108,2]
[334574558,1723253433335,-4803.28724752,0.000108,2]
[334574566,1723253438046,-4574.06848186,0.000108,2]
[334574567,1723253438057,-739.7983,0.000108,2]
[334574568,1723253438066,-967.2436,0.000108,2]
[334574569,1723253438076,-471.6214974,0.00010899,2]
[334574570,1723253438085,-500.0,0.000109,2]
[334574571,1723253438096,-1000.0,0.000109,2]
[334574572,1723253438106,-7500.0,0.000109,2]
[334574573,1723253438115,-774.07574,0.0001094,2]
[334574574,1723253438125,-250.0,0.00010959,2]
[334574575,1723253438134,-202.11353985,0.00010997,2]
[334574576,1723253438143,-3097.9317469,0.00010998,2]
[334574577,1723253438153,-10025.2801009,0.00010998,2]
[334574578,1723253438163,-1454.0781539,0.00010998,2]
[334574579,1723253438172,-1348.40444442,0.00010999,3]
[334574580,1723253438181,-41175.28787714,0.00011,2]
[334574581,1723253438195,-49094.72114469,0.00011,2]
[334574582,1723253438205,-91439.27230531,0.00011,2]
[334574583,1723253438217,-285.763033,0.00011,2]
[334574584,1723253438232,-700.54689836,0.00011,2]
[334574601,1723253439953,-28500.0,0.00011,2]
[334574602,1723253439966,-2127.60927574,0.00011,2]
[334574603,1723253439981,-377.38911494,0.00011,2]
[334574604,1723253439992,-111855.72390297,0.00011,2]
[334574605,1723253440003,-415.1,0.00011,2]
[334574606,1723253440124,-675.76719734,0.00011,2]
[334574607,1723253440135,-397.63098387,0.00011,2]
[334574608,1723253440146,-84567.13992091,0.00011,2]
[334574609,1723253440158,-706.04,0.00011,2]
[334574610,1723253440170,-8821.75096878,0.00011,2]
[334574612,1723253440292,-364.1588803,0.00011,2]
[334574614,1723253440306,-1702.28829529,0.00011,2]
[334574645,1723253442817,-784.38,0.00011,2]
[334574646,1723253442977,-158231.8654027,0.00011,2]
[334574647,1723253442991,-97123.41512957,0.00011,2]
[334574648,1723253443004,-1732.88242047,0.00011,2]
[334574649,1723253443023,-7707.22865925,0.00011,2]
[334574650,1723253444335,-12175.6,0.00011,2]
[334574651,1723253444391,-707.3898016,0.00011,2]
[334574652,1723253444404,-1388.82081271,0.00011,2]
[334574653,1723253444418,-430.65367495,0.00011,2]
[334574654,1723253444432,-571.64813917,0.00011,2]
[334574655,1723253444447,-487.545,0.00011,2]
[334574656,1723253444642,-2126.874996,0.00011,2]
[334574657,1723253444661,-1345.08973932,0.00011,2]
[334574659,1723253446122,-379.3322,0.000107,2]
[334574660,1723253446133,-1667.19387213,0.00011,2]
[334574666,1723253549352,296.32,8.945e-05,2]
[334574669,1723253601130,155.12698863,8.945e-05,2]
[334574672,1723253670817,150.0,0.00025351,120]
[334574679,1723253819197,317.20721822,0.00027,120]
[334574681,1723253851004,150.0,0.00025651,120]
[334574685,1723253970750,150.0,0.00026364,120]
[334574688,1723254031331,150.0,0.00026148,120]
[334574693,1723254090794,150.0,0.00026509,120]
[334574698,1723254150753,150.0,0.0002631,120]
[334574700,1723254178958,295.84,8.464e-05,2]
[334574702,1723254271030,150.0,0.00026521,120]
[334574708,1723254511196,150.0,0.00026428,120]
[334574710,1723254573202,43798.0,0.00027,120]
[334574717,1723254633155,-550.0,0.0001,2]
[334574718,1723254633165,-313.61,0.00010148,2]
[334574719,1723254633175,-250.0,0.00010173,2]
[334574720,1723254633184,-300.0,0.00010236,2]
[334574721,1723254633194,-2081.15952503,0.00010237,2]
[334574722,1723254633205,-351.96,0.00010237,2]
[334574723,1723254633486,-939.82724979,0.00010237,2]
[334574724,1723254633497,-1075.9549519,0.00010237,2]
[334574725,1723254633508,-19207.54554323,0.00010237,2]
[334574726,1723254633521,-243.55273005,0.00010237,2]
[334574727,1723254633530,-162.54,0.00010273,2]
[334574728,1723254633540,-1000.0,0.00010284,2]
[334574729,1723254633550,-150.0,0.00010685,2]
[334574730,1723254633560,-1599.76201433,0.0001069,2]
[334574731,1723254633569,-283.9967,0.000107,2]
[334574732,1723254633579,-273.7928,0.000107,2]
[334574733,1723254633589,-919.8675,0.000107,2]
[334574734,1723254633598,-323.7851,0.000107,2]
[334574735,1723254633608,-45507.6273,0.000107,2]
[334574736,1723254633617,-150.99,0.000107,2]
[334574737,1723254633627,-295.84,0.00010727,2]
[334574738,1723254633636,-2349.86,0.00010727,2]
[334574739,1723254633646,-1661.8406,0.000108,2]
[334574740,1723254633655,-465.03918,0.0001089,2]
[334574741,1723254633665,-247.9946,0.000109,2]
[334574742,1723254633675,-12501.421,0.000109,2]
[334574743,1723254633685,-605.9229,0.000109,2]
[334574744,1723254633694,-5760.7075,0.000109,2]
[334574745,1723254633705,-1129.5162,0.000109,2]